Workbook

Sheet Community Engagement
A1: Future Highways Research Club
B2: Parishes & Town Councils
B3: P&TC #1 | C3: P&TC #2 | D3: P&TC #3 | E3: P&TC #4 | F3: P&TC #5 | G3: P&TC #6 | H3: P&TC #7 | I3: P&TC #8 | J3: P&TC #9 | K3: P&TC #10 | L3: P&TC #11 | M3: P&TC #12 | N3: P&TC #13 | O3: P&TC #14 | P3: P&TC #15 | Q3: P&TC #16 | R3: P&TC #17 | S3: P&TC #18 | T3: P&TC #19 | U3: P&TC #20 | V3: P&TC #21 | W3: P&TC #22 | X3: P&TC #23 | Y3: P&TC #24 | Z3: P&TC #25 | AA3: P&TC #26 | AB3: P&TC #27 | AC3: P&TC #28 | AE3: Totals
A4: In Portfolio | B4: Yes | C4: No | D4: Yes | E4: No | F4: Yes | G4: Planned | H4: Yes | I4: ? | J4: Yes | K4: No | L4: ? | M4: Yes | N4: ? | O4: No | P4: No | Q4: Yes | R4: ? | S4: ? | T4: Yes | U4: Yes | V4: ? | W4: ? | X4: Yes | Y4: No | Z4: No | AA4: No | AB4: ? | AC4: ? | AE4: =COUNTIF(B4:AC4,"Yes") -> 10
A5: Characteristics
A6: P&TC Population Size | B6: 4865 | C6: 1626 | D6: 8484 | E6: 756 | F6: 6708 | G6: 11853 | H6: 11705 | I6: 4870 | J6: 5547 | K6: 1667 | L6: 2670 | M6: 9505 | N6: 6954 | O6: 677 | P6: 753 | Q6: 9548 | R6: 11729 | S6: 4632 | T6: 6412 | U6: 3901 | V6: 4213 | W6: 11776 | X6: 1214 | Y6: 4111 | Z6: 1739 | AA6: 3847 | AB6: 9784 | AC6: 11415 | AE6: =SUM(B6:AC6) -> 162961
A7: P&TC Highways Budget | B7: 5000 | C7: 0 | D7: 3000 | E7: 0 | F7: 0 | G7: 6000 | H7: 16000 | I7: 0 | J7: 3000 | K7: 0 | L7: 2000 | M7: 0 | N7: 0 | O7: 0 | P7: 0 | Q7: 14000 | R7: 0 | S7: 0 | T7: 6000 | U7: 8000 | V7: 0 | W7: 0 | X7: 6000 | Y7: 0 | Z7: 0 | AA7: 0 | AB7: 5000 | AC7: 5000 | AE7: =SUM(B7:AC7) -> 79000
A8: Engagement Readiness & Budget Allocation
A9: Baseline Service Statement | B9: Yes | D9: Planned | F9: Yes | G9: Yes | H9: Yes | J9: Yes | M9: Yes | Q9: Yes | T9: Yes | U9: Yes | X9: Yes | AB9: Yes
A10: Highways Activities Guidance for P&TCs | B10: Planned | D10: Yes | F10: Planned | H10: Yes | J10: Yes | M10: Planned | Q10: Yes | T10: Yes | X10: ? | AB10: Yes
A11: Support Services for Volunteers | B11: Yes | D11: Yes | F11: Planned | H11: Planned | J11: Planned | M11: Yes | Q11: Yes | T11: Planned | U11: Yes | X11: ? | AB11: Planned
A12: Agency Agreement for P&TC-Funded Works | B12: Yes | D12: Yes | F12: Planned | H12: Yes | J12: Planned | M12: Planned | Q12: Planned | T12: ?
A13: Menu Pricing for Authority-Delivered Services | B13: Yes | F13: Yes | H13: Yes | T13: Yes | AB13: Planned
A14: P&TC Liaison Framework | B14: Yes | D14: Planned | F14: Yes | G14: Yes | J14: Yes | Q14: Yes | T14: Yes | U14: Yes | X14: Planned | AB14: Yes
A15: Agreed Budget Allocation | B15: 2500 | C15: 0 | D15: 3000 | E15: 0 | F15: 0 | G15: 2000 | H15: 16000 | I15: 0 | J15: 2000 | K15: 0 | L15: 0 | M15: 0 | N15: 0 | O15: 0 | P15: 0 | Q15: 3000 | R15: 0 | S15: 0 | T15: 5000 | U15: 2000 | V15: 0 | W15: 0 | X15: 5000 | Y15: 0 | Z15: 0 | AA15: 0 | AB15: 5000 | AE15: =SUM(B15:AC15) -> 45500
A16: P&TC / Authority Managed Community Engagement Schemes
A17: Managed By | B17: Authority | D17: P/TC | F17: Authority | G17: P/TC | H17: P/TC | J17: Authority | M17: P/TC | Q17: P/TC | T17: Authority | U17: Authority | X17: Authority | AB17: Authority | AE17: =COUNTIF(B17:AC17,"Authority") -> 7 | AF17: Authority managed.
A18: Adjacent Minor Works (Sign Cleaning, Grass & Hedge Cutting) | B18: Yes | D18: Yes | F18: Yes | G18: ? | H18: ? | J18: Yes | M18: Yes | Q18: Yes | T18: Yes | U18: ? | X18: ? | AB18: ? | AC18: ? | AE18: =COUNTIF(B18:AC18,"Yes") -> 7
A19: Cost to Authority | B19: =IF(OR(B18="Yes", B18="Planned"),Adjacent_Minor_Works_Cost,0) -> 5660 | C19: 0 | D19: 5660 | E19: 0 | F19: 5660 | G19: 0 | H19: 0 | I19: 0 | J19: 5660 | K19: 0 | L19: 0 | M19: 5660 | N19: 0 | O19: 0 | P19: 0 | Q19: 5660 | R19: 0 | S19: 0 | T19: 5660 | U19: 0 | V19: 0 | W19: 0 | X19: 0 | Y19: 0 | Z19: 0 | AA19: 0 | AB19: 0 | AC19: 0 | AE19: =SUM(B19:AC19) -> 39620
A20: Cashable Benefit to Authority | B20: =IF(OR(B18="Yes", B18="Planned"),Adjacent_Minor_Works_Benefit,0) -> 7900 | C20: 0 | D20: 7900 | E20: 0 | F20: 7900 | G20: 0 | H20: 0 | I20: 0 | J20: 7900 | K20: 0 | L20: 0 | M20: 7900 | N20: 0 | O20: 0 | P20: 0 | Q20: 7900 | R20: 0 | S20: 0 | T20: 7900 | U20: 0 | V20: 0 | W20: 0 | X20: 0 | Y20: 0 | Z20: 0 | AA20: 0 | AB20: 0 | AC20: 0 | AE20: =SUM(B20:AC20) -> 55300
A21: Non-Cashable Benefit to Authority | B21: =IF(OR(B18="Yes", B18="Planned"),Adjacent_Minor_Works_Other,0) -> 0.85 | C21: 0 | D21: 0.85 | E21: 0 | F21: 0.85 | G21: 0 | H21: 0 | I21: 0 | J21: 0.85 | K21: 0 | L21: 0 | M21: 0.85 | N21: 0 | O21: 0 | P21: 0 | Q21: 0.85 | R21: 0 | S21: 0 | T21: 0.85 | U21: 0 | V21: 0 | W21: 0 | X21: 0 | Y21: 0 | Z21: 0 | AA21: 0 | AB21: 0 | AC21: 0 | AE21: =IF(SUM(B21:AC21)>0,AVERAGEIF(B21:AC21,">0"),0) -> 0.85
A22: Total | B22: =B20-B19 -> 2240 | C22: =C20-C19 -> 0 | D22: 2240 | E22: 0 | F22: 2240 | G22: 0 | H22: 0 | I22: 0 | J22: 2240 | K22: 0 | L22: 0 | M22: 2240 | N22: 0 | O22: 0 | P22: 0 | Q22: 2240 | R22: 0 | S22: 0 | T22: 2240 | U22: 0 | V22: 0 | W22: 0 | X22: 0 | Y22: 0 | Z22: 0 | AA22: 0 | AB22: 0 | AC22: 0
A23: Snow & Flood Wardens (Emergency Support) | B23: ? | D23: Yes | F23: Yes | G23: Yes | H23: Yes | J23: ? | M23: Yes | Q23: Yes | T23: Yes | U23: ? | X23: ? | AB23: Yes | AC23: ? | AE23: =COUNTIF(B23:AC23,"Yes") -> 8
A24: Cost to Authority | B24: =IF(OR(B23="Yes", B23="Planned"),Snow_Flood_Cost,0) -> 0 | C24: 0 | D24: 730 | E24: 0 | F24: 730 | G24: 730 | H24: 730 | I24: 0 | J24: 0 | K24: 0 | L24: 0 | M24: 730 | N24: 0 | O24: 0 | P24: 0 | Q24: 730 | R24: 0 | S24: 0 | T24: 730 | U24: 0 | V24: 0 | W24: 0 | X24: 0 | Y24: 0 | Z24: 0 | AA24: 0 | AB24: 730 | AC24: 0 | AE24: =SUM(B24:AC24) -> 5840
A25: Benefit to Authority | B25: =IF(OR(B23="Yes", B23="Planned"),Snow_Flood_Benefit,0) -> 0 | C25: 0 | D25: 3000 | E25: 0 | F25: 3000 | G25: 3000 | H25: 3000 | I25: 0 | J25: 0 | K25: 0 | L25: 0 | M25: 3000 | N25: 0 | O25: 0 | P25: 0 | Q25: 3000 | R25: 0 | S25: 0 | T25: 3000 | U25: 0 | V25: 0 | W25: 0 | X25: 0 | Y25: 0 | Z25: 0 | AA25: 0 | AB25: 3000 | AC25: 0 | AE25: =SUM(B25:AC25) -> 24000
A26: Non-Cashable Benefit to Authority | B26: =IF(OR(B23="Yes", B23="Planned"),Snow_Flood_Other,0) -> 0 | C26: 0 | D26: 0.55 | E26: 0 | F26: 0.55 | G26: 0.55 | H26: 0.55 | I26: 0 | J26: 0 | K26: 0 | L26: 0 | M26: 0.55 | N26: 0 | O26: 0 | P26: 0 | Q26: 0.55 | R26: 0 | S26: 0 | T26: 0.55 | U26: 0 | V26: 0 | W26: 0 | X26: 0 | Y26: 0 | Z26: 0 | AA26: 0 | AB26: 0.55 | AC26: 0 | AE26: =IF(SUM(B26:AC26)>0,AVERAGEIF(B26:AC26,">0"),0) -> 0.55
A27: Total | B27: =B25-B24 -> 0 | C27: 0 | D27: 2270 | E27: 0 | F27: 2270 | G27: 2270 | H27: 2270 | I27: 0 | J27: 0 | K27: 0 | L27: 0 | M27: 2270 | N27: 0 | O27: 0 | P27: 0 | Q27: 2270 | R27: 0 | S27: 0 | T27: 2270 | U27: 0 | V27: 0 | W27: 0 | X27: 0 | Y27: 0 | Z27: 0 | AA27: 0 | AB27: 2270 | AC27: =AC25-AC24 -> 0
A28: Highways Wardens (Highways Authority Managed) | B28: Yes | D28: ? | F28: ? | G28: ? | H28: Yes | J28: Yes | M28: Yes | Q28: Yes | T28: Yes | U28: ? | X28: ? | AB28: Yes | AC28: ? | AE28: =COUNTIF(B28:AC28,"Yes") -> 7
A29: Cost to Authority | B29: =IF(OR(B28="Yes", B28="Planned"),Highways_Wardens_Cost,0) -> 2230 | C29: 0 | D29: 0 | E29: 0 | F29: 0 | G29: 0 | H29: 2230 | I29: 0 | J29: 2230 | K29: 0 | L29: 0 | M29: 2230 | N29: 0 | O29: 0 | P29: 0 | Q29: 2230 | R29: 0 | S29: 0 | T29: 2230 | U29: 0 | V29: 0 | W29: 0 | X29: 0 | Y29: 0 | Z29: 0 | AA29: 0 | AB29: 2230 | AC29: 0 | AE29: =SUM(B29:AC29) -> 15610
A30: Benefit to Authority | B30: =IF(OR(B28="Yes", B28="Planned"),Highways_Wardens_Benefit,0) -> 3000 | C30: 0 | D30: 0 | E30: 0 | F30: 0 | G30: 0 | H30: 3000 | I30: 0 | J30: 3000 | K30: 0 | L30: 0 | M30: 3000 | N30: 0 | O30: 0 | P30: 0 | Q30: 3000 | R30: 0 | S30: 0 | T30: 3000 | U30: 0 | V30: 0 | W30: 0 | X30: 0 | Y30: 0 | Z30: 0 | AA30: 0 | AB30: 3000 | AC30: 0 | AE30: =SUM(B30:AC30) -> 21000
A31: Non-Cashable Benefit to Authority | B31: =IF(OR(B28="Yes", B28="Planned"),Highways_Wardens_Other,0) -> 0.75 | C31: 0 | D31: 0 | E31: 0 | F31: 0 | G31: 0 | H31: 0.75 | I31: 0 | J31: 0.75 | K31: 0 | L31: 0 | M31: 0.75 | N31: 0 | O31: 0 | P31: 0 | Q31: 0.75 | R31: 0 | S31: 0 | T31: 0.75 | U31: 0 | V31: 0 | W31: 0 | X31: 0 | Y31: 0 | Z31: 0 | AA31: 0 | AB31: 0.75 | AC31: 0 | AE31: =IF(SUM(B31:AC31)>0,AVERAGEIF(B31:AC31,">0"),0) -> 0.75
A32: Total | B32: =B30-B29 -> 770 | C32: 0 | D32: 0 | E32: 0 | F32: 0 | G32: 0 | H32: 770 | I32: 0 | J32: 770 | K32: 0 | L32: 0 | M32: 770 | N32: 0 | O32: 0 | P32: 0 | Q32: 770 | R32: 0 | S32: 0 | T32: 770 | U32: 0 | V32: 0 | W32: 0 | X32: 0 | Y32: 0 | Z32: 0 | AA32: 0 | AB32: 770 | AC32: =AC30-AC29 -> 0
A33: Footway Winter Gritting (Includes Grit Provision) | B33: Yes | D33: Yes | F33: No | G33: Yes | H33: Yes | J33: ? | M33: ? | Q33: Yes | T33: Yes | U33: ? | X33: ? | AB33: No | AC33: ? | AE33: =COUNTIF(B33:AC33,"Yes") -> 6
A34: Cost to Authority | B34: =IF(OR(B33="Yes", B33="Planned"),Footway_Gritting_Cost,0) -> 2500 | C34: 0 | D34: 2500 | E34: 0 | F34: 0 | G34: 2500 | H34: 2500 | I34: 0 | J34: 0 | K34: 0 | L34: 0 | M34: 0 | N34: 0 | O34: 0 | P34: 0 | Q34: 2500 | R34: 0 | S34: 0 | T34: 2500 | U34: 0 | V34: 0 | W34: 0 | X34: 0 | Y34: 0 | Z34: 0 | AA34: 0 | AB34: 0 | AC34: 0 | AE34: =SUM(B34:AC34) -> 15000
A35: Benefit to Authority | B35: =IF(OR(B33="Yes", B33="Planned"),Footway_Gritting_Benefit,0) -> 3000 | C35: 0 | D35: 3000 | E35: 0 | F35: 0 | G35: 3000 | H35: 3000 | I35: 0 | J35: 0 | K35: 0 | L35: 0 | M35: 0 | N35: 0 | O35: 0 | P35: 0 | Q35: 3000 | R35: 0 | S35: 0 | T35: 3000 | U35: 0 | V35: 0 | W35: 0 | X35: 0 | Y35: 0 | Z35: 0 | AA35: 0 | AB35: 0 | AC35: 0 | AE35: =SUM(B35:AC35) -> 18000
A36: Non-Cashable Benefit to Authority | B36: =IF(OR(B33="Yes", B33="Planned"),Footway_Gritting_Other,0) -> 0.7 | C36: 0 | D36: 0.7 | E36: 0 | F36: 0 | G36: 0.7 | H36: 0.7 | I36: 0 | J36: 0 | K36: 0 | L36: 0 | M36: 0 | N36: 0 | O36: 0 | P36: 0 | Q36: 0.7 | R36: 0 | S36: 0 | T36: 0.7 | U36: 0 | V36: 0 | W36: 0 | X36: 0 | Y36: 0 | Z36: 0 | AA36: 0 | AB36: 0 | AC36: 0 | AE36: =IF(SUM(B36:AC36)>0,AVERAGEIF(B36:AC36,">0"),0) -> 0.7
A37: Total | B37: =B35-B34 -> 500 | C37: =C35-C34 -> 0 | D37: =D35-D34 -> 500 | E37: =E35-E34 -> 0 | F37: =F35-F34 -> 0 | G37: =G35-G34 -> 500 | H37: =H35-H34 -> 500 | I37: =I35-I34 -> 0 | J37: =J35-J34 -> 0 | K37: =K35-K34 -> 0 | L37: =L35-L34 -> 0 | M37: =M35-M34 -> 0 | N37: =N35-N34 -> 0 | O37: =O35-O34 -> 0 | P37: =P35-P34 -> 0 | Q37: =Q35-Q34 -> 500 | R37: =R35-R34 -> 0 | S37: =S35-S34 -> 0 | T37: =T35-T34 -> 500 | U37: =U35-U34 -> 0 | V37: =V35-V34 -> 0 | W37: =W35-W34 -> 0 | X37: =X35-X34 -> 0 | Y37: =Y35-Y34 -> 0 | Z37: =Z35-Z34 -> 0 | AA37: =AA35-AA34 -> 0 | AB37: =AB35-AB34 -> 0 | AC37: =AC35-AC34 -> 0
A38: Footway Maintenance | B38: Yes | D38: Yes | F38: ? | G38: ? | H38: Yes | J38: ? | M38: Yes | Q38: ? | T38: Yes | U38: ? | X38: ? | AB38: ? | AC38: ? | AE38: =COUNTIF(B38:AC38,"Yes") -> 5
A39: Cost to Authority | B39: =IF(OR(B38="Yes", B38="Planned"),Footway_Maintenance_Cost,0) -> 3750 | C39: 0 | D39: 3750 | E39: 0 | F39: 0 | G39: 0 | H39: 3750 | I39: 0 | J39: 0 | K39: 0 | L39: 0 | M39: 3750 | N39: 0 | O39: 0 | P39: 0 | Q39: 0 | R39: 0 | S39: 0 | T39: 3750 | U39: 0 | V39: 0 | W39: 0 | X39: 0 | Y39: 0 | Z39: 0 | AA39: 0 | AB39: 0 | AC39: 0 | AE39: =SUM(B39:AC39) -> 18750
A40: Benefit to Authority | B40: =IF(OR(B38="Yes", B38="Planned"),Footway_Maintenance_Benefit,0) -> 3900 | C40: 0 | D40: 3900 | E40: 0 | F40: 0 | G40: 0 | H40: 3900 | I40: 0 | J40: 0 | K40: 0 | L40: 0 | M40: 3900 | N40: 0 | O40: 0 | P40: 0 | Q40: 0 | R40: 0 | S40: 0 | T40: 3900 | U40: 0 | V40: 0 | W40: 0 | X40: 0 | Y40: 0 | Z40: 0 | AA40: 0 | AB40: 0 | AC40: 0 | AE40: =SUM(B40:AC40) -> 19500
A41: Non-Cashable Benefit to Authority | B41: =IF(OR(B38="Yes", B38="Planned"),Footway_Maintenance_Other,0) -> 0.7 | C41: 0 | D41: 0.7 | E41: 0 | F41: 0 | G41: 0 | H41: 0.7 | I41: 0 | J41: 0 | K41: 0 | L41: 0 | M41: 0.7 | N41: 0 | O41: 0 | P41: 0 | Q41: 0 | R41: 0 | S41: 0 | T41: 0.7 | U41: 0 | V41: 0 | W41: 0 | X41: 0 | Y41: 0 | Z41: 0 | AA41: 0 | AB41: 0 | AC41: 0 | AE41: =IF(SUM(B41:AC41)>0,AVERAGEIF(B41:AC41,">0"),0) -> 0.7
A42: Total | B42: =B40-B39 -> 150 | C42: =C40-C39 -> 0 | D42: =D40-D39 -> 150 | E42: =E40-E39 -> 0 | F42: =F40-F39 -> 0 | G42: =G40-G39 -> 0 | H42: =H40-H39 -> 150 | I42: =I40-I39 -> 0 | J42: =J40-J39 -> 0 | K42: =K40-K39 -> 0 | L42: =L40-L39 -> 0 | M42: =M40-M39 -> 150 | N42: =N40-N39 -> 0 | O42: =O40-O39 -> 0 | P42: =P40-P39 -> 0 | Q42: =Q40-Q39 -> 0 | R42: =R40-R39 -> 0 | S42: =S40-S39 -> 0 | T42: =T40-T39 -> 150 | U42: =U40-U39 -> 0 | V42: =V40-V39 -> 0 | W42: =W40-W39 -> 0 | X42: =X40-X39 -> 0 | Y42: =Y40-Y39 -> 0 | Z42: =Z40-Z39 -> 0 | AA42: =AA40-AA39 -> 0 | AB42: =AB40-AB39 -> 0 | AC42: =AC40-AC39 -> 0
A43: Other (Specify) | B43: ? | D43: ? | F43: ? | G43: ? | H43: ? | J43: ? | M43: ? | Q43: ? | T43: ? | U43: ? | X43: ? | AB43: ? | AC43: ? | AE43: =COUNTIF(B43:AC43,"Yes") -> 0
A44: Cost to Authority | B44: =IF(OR(B43="Yes", B43="Planned"),Other_Cost,0) -> 0 | C44: =IF(OR(C43="Yes", C43="Planned"),Footway_Maintenance_Cost,0) -> 0 | D44: 0 | E44: 0 | F44: 0 | G44: 0 | H44: 0 | I44: 0 | J44: 0 | K44: 0 | L44: 0 | M44: 0 | N44: 0 | O44: 0 | P44: 0 | Q44: 0 | R44: 0 | S44: 0 | T44: 0 | U44: 0 | V44: 0 | W44: 0 | X44: 0 | Y44: 0 | Z44: 0 | AA44: 0 | AB44: 0 | AC44: 0 | AE44: =SUM(B44:AC44) -> 0
A45: Benefit to Authority | B45: =IF(OR(B43="Yes", B43="Planned"),Other_Benefit,0) -> 0 | C45: =IF(OR(C43="Yes", C43="Planned"),Footway_Maintenance_Benefit,0) -> 0 | D45: 0 | E45: 0 | F45: 0 | G45: 0 | H45: 0 | I45: 0 | J45: 0 | K45: 0 | L45: 0 | M45: 0 | N45: 0 | O45: 0 | P45: 0 | Q45: 0 | R45: 0 | S45: 0 | T45: 0 | U45: 0 | V45: 0 | W45: 0 | X45: 0 | Y45: 0 | Z45: 0 | AA45: 0 | AB45: 0 | AC45: 0 | AE45: =SUM(B45:AC45) -> 0
A46: Non-Cashable Benefit to Authority | B46: =IF(OR(B43="Yes", B43="Planned"),Other_Other,0) -> 0 | C46: =IF(OR(C43="Yes", C43="Planned"),Footway_Maintenance_Other,0) -> 0 | D46: 0 | E46: 0 | F46: 0 | G46: 0 | H46: 0 | I46: 0 | J46: 0 | K46: 0 | L46: 0 | M46: 0 | N46: 0 | O46: 0 | P46: 0 | Q46: 0 | R46: 0 | S46: 0 | T46: 0 | U46: 0 | V46: 0 | W46: 0 | X46: 0 | Y46: 0 | Z46: 0 | AA46: 0 | AB46: 0 | AC46: 0 | AE46: =IF(SUM(B46:AC46)>0,AVERAGEIF(B46:AC46,">0"),0) -> 0
A47: Total | B47: =B45-B44 -> 0 | C47: 0 | D47: 0 | E47: 0 | F47: 0 | G47: 0 | H47: 0 | I47: 0 | J47: 0 | K47: 0 | L47: 0 | M47: 0 | N47: 0 | O47: 0 | P47: 0 | Q47: 0 | R47: 0 | S47: 0 | T47: 0 | U47: 0 | V47: 0 | W47: 0 | X47: 0 | Y47: 0 | Z47: 0 | AA47: 0 | AB47: 0 | AC47: 0
A48: Total Benefit / Dis-Benefit | B48: =B47+B42+B37+B32+B27+B22 -> 3660 | C48: 0 | D48: 5160 | E48: 0 | F48: 4510 | G48: 2770 | H48: 3690 | I48: 0 | J48: 3010 | K48: 0 | L48: 0 | M48: 5430 | N48: 0 | O48: 0 | P48: 0 | Q48: 5780 | R48: 0 | S48: 0 | T48: 5930 | U48: 0 | V48: 0 | W48: 0 | X48: 0 | Y48: 0 | Z48: 0 | AA48: 0 | AB48: 3040 | AC48: 0 | AE48: =SUM(B48:AC48) -> 42980
A49: Average Non-Cashable Benefits | B49: =(B46+B41+B36+B31+B26+B21)/6 -> 0.5 | C49: =(C46+C41+C36+C31+C26+C21)/6 -> 0 | D49: 0.4666666667 | E49: 0 | F49: 0.2333333333 | G49: 0.2083333333 | H49: 0.45 | I49: 0 | J49: 0.2666666667 | K49: 0 | L49: 0 | M49: 0.475 | N49: 0 | O49: 0 | P49: 0 | Q49: 0.475 | R49: 0 | S49: 0 | T49: 0.5916666667 | U49: 0 | V49: 0 | W49: 0 | X49: 0 | Y49: 0 | Z49: 0 | AA49: 0 | AB49: 0.2166666667 | AC49: 0 | AE49: =AVERAGEIF(B49:AC49,">0") -> 0.3883333333
A50: Total Relationship Value (Community Budget + Total Benefit) | B50: =B48+B15 -> 6160 | C50: =C48+C15 -> 0 | D50: 8160 | E50: 0 | F50: 4510 | G50: 4770 | H50: 19690 | I50: 0 | J50: 5010 | K50: 0 | L50: 0 | M50: 5430 | N50: 0 | O50: 0 | P50: 0 | Q50: 8780 | R50: 0 | S50: 0 | T50: 10930 | U50: 2000 | V50: 0 | W50: 0 | X50: 5000 | Y50: 0 | Z50: 0 | AA50: 0 | AB50: 8040 | AC50: 0 | AE50: =SUM(B50:AC50) -> 88480

Sheet Adjacent Minor Works
A1: Cost Analysis | B1: Average Annual Cost
A2: Equipment & Materials Costs
A3: Cost of Appliances / Equipment | B3: 300 | C3: Purchases and depreciation.
A4: Cost of Personal Protection Equipment | B4: 160 | C4: Where required.
A5: Cost of Equipment Maintenance | B5: 250 | C5: Cleaning and wear and tear maintenance.
A6: Cost of Delivery / Collection | B6: 350 | C6: To and from each P&TC (where applicable).
A7: Cost of Consumables / Materials / Fuel | B7: 200 | C7: Include cost of calls / data where applicable.
A8: Cost of Disposals (Where Applicable) | B8: 200 | C8: Waste disposal.
A9: Resources Costs
A10: Cost of Scheme Recruitment / Retention | B10: 100 | C10: One off cost.
A11: Cost of Training | B11: 200 | C11: Repeating annual cost.
A12: Cost of Supervision | B12: 300 | C12: On higher-risk activities.
A13: Cost of Incentivisation | B13: 100 | C13: Assumes two micro commissions per P&TC.
A14: Cost of Network Management
A15: Cost of Notifications | B15: 500 | C15: Assumes use of established notifications frameworks and methods.
A16: Cost of Traffic Management | B16: 3000 | C16: Where required.
A17: Total | B17: =SUM(B3:B16) -> 5660
A20: Benefits Analysis
A21: Cashable Benefits | B21: Typical Annual Benefits
A22: Economy Gains (Cashable) | B22: 3800 | C22: Reductions in cost through use of community-based resources.
A23: Efficiency Gains (Cashable) | B23: 2900 | C23: Increase in resources efficiency / productivity / throughput.
A24: Asset Cost Savings (Cashable) | B24: 1200 | C24: Improvements in asset condition, extending asset longevity.
A25: Total | B25: =SUM(B22:B24) -> 7900
A27: Non-Cashable Benefits | B27: Typical Annual Outcomes
A28: Reputational | B28: Medium [3]
A29: Social (Health & Wellbeing) | B29: Very High [5]
A30: Environmental | B30: Very High [5]
A31: Political | B31: High [4]
A32: Overall Non-Cashable Benefit Score | B32: =(Cnum(B28)+Cnum(B29)+Cnum(B30)+Cnum(B31))/20 -> 0.85

Sheet Snow & Flood Wardens
A1: Cost Analysis | B1: Average Annual Cost
A2: Equipment & Materials Costs
A3: Cost of Appliances / Equipment | B3: 0 | C3: Purchases and depreciation.
A4: Cost of Personal Protection Equipment | B4: 160 | C4: Where required.
A5: Cost of Equipment Maintenance | B5: 0 | C5: Cleaning and wear and tear maintenance.
A6: Cost of Delivery / Collection | B6: 0 | C6: To and from each P&TC (where applicable).
A7: Cost of Consumables / Materials / Fuel | B7: 80 | C7: Include cost of calls / data where applicable.
A8: Cost of Disposals (Where Applicable) | B8: 0 | C8: Waste disposal.
A9: Resources Costs
A10: Cost of Scheme Recruitment / Retention | B10: 100 | C10: One off cost.
A11: Cost of Training | B11: 200 | C11: Repeating annual cost.
A12: Cost of Supervision | B12: 90 | C12: On higher-risk activities.
A13: Cost of Incentivisation | B13: 100 | C13: Assumes two micro commissions per P&TC.
A14: Cost of Network Management
A15: Cost of Notifications | B15: 0 | C15: Assumes use of established notifications frameworks and methods.
A16: Cost of Traffic Management | B16: 0 | C16: Where required.
A17: Total | B17: =SUM(B3:B16) -> 730
A20: Benefits Analysis
A21: Cashable Benefits | B21: Typical Annual Benefits
A22: Economy Gains (Cashable) | B22: 1200 | C22: Reductions in cost through use of community-based resources.
A23: Efficiency Gains (Cashable) | B23: 600 | C23: Increase in resources efficiency / productivity / throughput.
A24: Asset Cost Savings (Cashable) | B24: 1200 | C24: Improvements in asset condition, extending asset longevity.
A25: Total | B25: =SUM(B22:B24) -> 3000
A27: Non-Cashable Benefits | B27: Typical Annual Outcomes
A28: Reputational | B28: Low [2]
A29: Social (Health & Wellbeing) | B29: Very High [5]
A30: Environmental | B30: Very Low [1]
A31: Political | B31: Medium [3]
A32: Overall Non-Cashable Benefit Score | B32: =(Cnum(B28)+Cnum(B29)+Cnum(B30)+Cnum(B31))/20 -> 0.55

Sheet Highways Wardens
A1: Cost Analysis | B1: Average Annual Cost
A2: Equipment & Materials Costs
A3: Cost of Appliances / Equipment | B3: 1200 | C3: Purchases and depreciation.
A4: Cost of Personal Protection Equipment | B4: 160 | C4: Where required.
A5: Cost of Equipment Maintenance | B5: 0 | C5: Cleaning and wear and tear maintenance.
A6: Cost of Delivery / Collection | B6: 0 | C6: To and from each P&TC (where applicable).
A7: Cost of Consumables / Materials / Fuel | B7: 380 | C7: Include cost of calls / data where applicable.
A8: Cost of Disposals (Where Applicable) | B8: 0 | C8: Waste disposal.
A9: Resources Costs
A10: Cost of Scheme Recruitment / Retention | B10: 100 | C10: One off cost.
A11: Cost of Training | B11: 200 | C11: Repeating annual cost.
A12: Cost of Supervision | B12: 90 | C12: On higher-risk activities.
A13: Cost of Incentivisation | B13: 100 | C13: Assumes two micro commissions per P&TC.
A14: Cost of Network Management
A15: Cost of Notifications | B15: 0 | C15: Assumes use of established notifications frameworks and methods.
A16: Cost of Traffic Management | B16: 0 | C16: Where required.
A17: Total | B17: =SUM(B3:B16) -> 2230
A20: Benefits Analysis
A21: Cashable Benefits | B21: Typical Annual Benefits
A22: Economy Gains (Cashable) | B22: 1200 | C22: Reductions in cost through use of community-based resources.
A23: Efficiency Gains (Cashable) | B23: 600 | C23: Increase in resources efficiency / productivity / throughput.
A24: Asset Cost Savings (Cashable) | B24: 1200 | C24: Improvements in asset condition, extending asset longevity.
A25: Total | B25: =SUM(B22:B24) -> 3000
A27: Non-Cashable Benefits | B27: Typical Annual Outcomes
A28: Reputational | B28: High [4]
A29: Social (Health & Wellbeing) | B29: Very High [5]
A30: Environmental | B30: Low [2]
A31: Political | B31: High [4]
A32: Overall Non-Cashable Benefit Score | B32: =(Cnum(B28)+Cnum(B29)+Cnum(B30)+Cnum(B31))/20 -> 0.75

Sheet Footway Winter Gritting
A1: Cost Analysis | B1: Average Annual Cost
A2: Equipment & Materials Costs
A3: Cost of Appliances / Equipment | B3: 850 | C3: Purchases and depreciation.
A4: Cost of Personal Protection Equipment | B4: 160 | C4: Where required.
A5: Cost of Equipment Maintenance | B5: 200 | C5: Cleaning and wear and tear maintenance.
A6: Cost of Delivery / Collection | B6: 0 | C6: To and from each P&TC (where applicable).
A7: Cost of Consumables / Materials / Fuel | B7: 800 | C7: Include cost of calls / data where applicable.
A8: Cost of Disposals (Where Applicable) | B8: 0 | C8: Waste disposal.
A9: Resources Costs
A10: Cost of Scheme Recruitment / Retention | B10: 100 | C10: One off cost.
A11: Cost of Training | B11: 200 | C11: Repeating annual cost.
A12: Cost of Supervision | B12: 90 | C12: On higher-risk activities.
A13: Cost of Incentivisation | B13: 100 | C13: Assumes two micro commissions per P&TC.
A14: Cost of Network Management
A15: Cost of Notifications | B15: 0 | C15: Assumes use of established notifications frameworks and methods.
A16: Cost of Traffic Management | B16: 0 | C16: Where required.
A17: Total | B17: =SUM(B3:B16) -> 2500
A20: Benefits Analysis
A21: Cashable Benefits | B21: Typical Annual Benefits
A22: Economy Gains (Cashable) | B22: 1200 | C22: Reductions in cost through use of community-based resources.
A23: Efficiency Gains (Cashable) | B23: 600 | C23: Increase in resources efficiency / productivity / throughput.
A24: Asset Cost Savings (Cashable) | B24: 1200 | C24: Improvements in asset condition, extending asset longevity.
A25: Total | B25: =SUM(B22:B24) -> 3000
A27: Non-Cashable Benefits | B27: Typical Annual Outcomes
A28: Reputational | B28: High [4]
A29: Social (Health & Wellbeing) | B29: Very High [5]
A30: Environmental | B30: Very Low [1]
A31: Political | B31: High [4]
A32: Overall Non-Cashable Benefit Score | B32: =(Cnum(B28)+Cnum(B29)+Cnum(B30)+Cnum(B31))/20 -> 0.7

Sheet Footway Maintenance
A1: Cost Analysis | B1: Average Annual Cost
A2: Equipment & Materials Costs
A3: Cost of Appliances / Equipment | B3: 1200 | C3: Purchases and depreciation.
A4: Cost of Personal Protection Equipment | B4: 160 | C4: Where required.
A5: Cost of Equipment Maintenance | B5: 200 | C5: Cleaning and wear and tear maintenance.
A6: Cost of Delivery / Collection | B6: 600 | C6: To and from each P&TC (where applicable).
A7: Cost of Consumables / Materials / Fuel | B7: 800 | C7: Include cost of calls / data where applicable.
A8: Cost of Disposals (Where Applicable) | B8: 300 | C8: Waste disposal.
A9: Resources Costs
A10: Cost of Scheme Recruitment / Retention | B10: 100 | C10: One off cost.
A11: Cost of Training | B11: 200 | C11: Repeating annual cost.
A12: Cost of Supervision | B12: 90 | C12: On higher-risk activities.
A13: Cost of Incentivisation | B13: 100 | C13: Assumes two micro commissions per P&TC.
A14: Cost of Network Management
A15: Cost of Notifications | B15: 0 | C15: Assumes use of established notifications frameworks and methods.
A16: Cost of Traffic Management | B16: 0 | C16: Where required.
A17: Total | B17: =SUM(B3:B16) -> 3750
A20: Benefits Analysis
A21: Cashable Benefits | B21: Typical Annual Benefits
A22: Economy Gains (Cashable) | B22: 1900 | C22: Reductions in cost through use of community-based resources.
A23: Efficiency Gains (Cashable) | B23: 800 | C23: Increase in resources efficiency / productivity / throughput.
A24: Asset Cost Savings (Cashable) | B24: 1200 | C24: Improvements in asset condition, extending asset longevity.
A25: Total | B25: =SUM(B22:B24) -> 3900
A27: Non-Cashable Benefits | B27: Typical Annual Outcomes
A28: Reputational | B28: High [4]
A29: Social (Health & Wellbeing) | B29: Very High [5]
A30: Environmental | B30: Very Low [1]
A31: Political | B31: High [4]
A32: Overall Non-Cashable Benefit Score | B32: =(Cnum(B28)+Cnum(B29)+Cnum(B30)+Cnum(B31))/20 -> 0.7

Sheet Other
A1: Cost Analysis | B1: Average Annual Cost
A2: Equipment & Materials Costs
A3: Cost of Appliances / Equipment | B3: 1200 | C3: Purchases and depreciation.
A4: Cost of Personal Protection Equipment | B4: 160 | C4: Where required.
A5: Cost of Equipment Maintenance | B5: 200 | C5: Cleaning and wear and tear maintenance.
A6: Cost of Delivery / Collection | B6: 600 | C6: To and from each P&TC (where applicable).
A7: Cost of Consumables / Materials / Fuel | B7: 800 | C7: Include cost of calls / data where applicable.
A8: Cost of Disposals (Where Applicable) | B8: 300 | C8: Waste disposal.
A9: Resources Costs
A10: Cost of Scheme Recruitment / Retention | B10: 100 | C10: One off cost.
A11: Cost of Training | B11: 200 | C11: Repeating annual cost.
A12: Cost of Supervision | B12: 90 | C12: On higher-risk activities.
A13: Cost of Incentivisation | B13: 100 | C13: Assumes two micro commissions per P&TC.
A14: Cost of Network Management
A15: Cost of Notifications | B15: 0 | C15: Assumes use of established notifications frameworks and methods.
A16: Cost of Traffic Management | B16: 0 | C16: Where required.
A17: Total | B17: =SUM(B3:B16) -> 3750
A20: Benefits Analysis
A21: Cashable Benefits | B21: Typical Annual Benefits
A22: Economy Gains (Cashable) | B22: 1900 | C22: Reductions in cost through use of community-based resources.
A23: Efficiency Gains (Cashable) | B23: 800 | C23: Increase in resources efficiency / productivity / throughput.
A24: Asset Cost Savings (Cashable) | B24: 1200 | C24: Improvements in asset condition, extending asset longevity.
A25: Total | B25: =SUM(B22:B24) -> 3900
A27: Non-Cashable Benefits | B27: Typical Annual Outcomes
A28: Reputational | B28: High [4]
A29: Social (Health & Wellbeing) | B29: Very High [5]
A30: Environmental | B30: Very Low [1]
A31: Political | B31: High [4]
A32: Overall Non-Cashable Benefit Score | B32: =(Cnum(B28)+Cnum(B29)+Cnum(B30)+Cnum(B31))/20 -> 0.7
